fUST/lending_fUST_20240524
["ID","MTS","AMOUNT","RATE_DAILY","PERIOD"]
[327838764,1716538238459,-187.1961905,0.00024,2]
[327838766,1716538238468,-366.537646,0.00024384,2]
[327838768,1716538238478,-52.43255736,0.00024647,3]
[327838771,1716538238490,-114.58744264,0.00024647,3]
[327838773,1716538238499,-501.11,0.00024647,3]
[327838775,1716538238509,-239.75610434,0.00024655,2]
[327838777,1716538238518,-1972.55891415,0.00024655,2]
[327838779,1716538238527,-274.38861044,0.00024655,2]
[327838782,1716538238537,-531.26583784,0.00024655,2]
[327838785,1716538238546,-500.0,0.00024656,2]
[327838788,1716538238556,-197.83815105,0.00024656,2]
[327838791,1716538238565,-497.12396233,0.00024656,2]
[327838793,1716538238576,-591.08900464,0.00024656,2]
[327838795,1716538238585,-500.0,0.00024656,2]
[327838797,1716538238594,-500.0,0.00024656,2]
[327838799,1716538238603,-500.0,0.00024656,4]
[327838801,1716538238612,-500.0,0.00024656,4]
[327838803,1716538238622,-500.0,0.00024656,4]
[327838805,1716538238631,-500.0,0.00024656,4]
[327838807,1716538238641,-500.0,0.00024656,4]
[327838809,1716538238650,-500.0,0.00024656,4]
[327838811,1716538238659,-500.0,0.00024656,4]
[327838813,1716538238669,-10287.84370458,0.00024657,11]
[327838815,1716538238678,-500.0,0.00024657,2]
[327838817,1716538238687,-394.90131484,0.00024657,2]
[327838819,1716538238696,-500.0,0.00024657,2]
[327838821,1716538238706,-399.53695357,0.00024657,2]
[327838823,1716538238718,-100.46304643,0.00024657,2]
[327838825,1716538238727,-570.96695357,0.00024657,2]
[327838953,1716538241730,-318.49304643,0.00024657,2]
[327838954,1716538241739,-500.0,0.00024657,2]
[327838955,1716538241749,-500.0,0.00024657,2]
[327838956,1716538241758,-500.0,0.00024657,2]
[327838957,1716538241767,-500.0,0.00024657,2]
[327838958,1716538241776,-500.0,0.00024657,2]
[327838959,1716538241786,-500.0,0.00024657,2]
[327838960,1716538241795,-500.0,0.00024657,2]
[327838961,1716538241804,-500.0,0.00024657,2]
[327838962,1716538241813,-509.02859687,0.00024657,2]
[327838963,1716538241824,-500.0,0.00024657,2]
[327838965,1716538241833,-500.0,0.00024657,2]
[327838967,1716538241843,-500.0,0.00024657,2]
[327838969,1716538241852,-386.10658132,0.00024657,2]
[327838996,1716538246585,-113.89341868,0.00024657,2]
[327838997,1716538246594,-500.0,0.00024657,2]
[327838998,1716538246604,-500.0,0.00024657,2]
[327838999,1716538246613,-608.54,0.00024657,2]
[327839000,1716538246622,-500.0,0.00024657,2]
[327839001,1716538246631,-699.22,0.00024657,2]
[327839002,1716538246640,-502.70112601,0.00024657,2]
[327839003,1716538246649,-510.48,0.00024657,2]
[327839004,1716538246659,-500.0,0.00024657,2]
[327839005,1716538246669,-732.22,0.00024657,2]
[327839006,1716538246679,-500.0,0.00024657,2]
[327839007,1716538246688,-500.0,0.00024657,2]
[327839008,1716538246845,-507.28290332,0.00024657,2]
[327839009,1716538246854,-500.0,0.00024657,2]
[327839010,1716538246864,-502.43855581,0.00024657,2]
[327839011,1716538246873,-622.4,0.00024657,2]
[327839012,1716538246883,-1787.19,0.00024657,2]
[327839013,1716538246892,-500.0,0.00024657,2]
[327839014,1716538246902,-502.16855781,0.00024657,2]
[327839015,1716538246911,-957.48,0.00024657,2]
[327839016,1716538246920,-697.68,0.00024657,2]
[327839017,1716538246930,-503.09699897,0.00024657,2]
[327839018,1716538246939,-500.0,0.00024657,2]
[327839019,1716538246950,-2601.77,0.00024657,2]
[327839020,1716538246960,-501.77511785,0.00024657,2]
[327839021,1716538246970,-500.0,0.00024657,2]
[327839022,1716538246980,-500.0,0.00024657,2]
[327839023,1716538246989,-500.0,0.00024657,2]
[327839024,1716538246998,-503.83257566,0.00024657,2]
[327839025,1716538247007,-1137.02,0.00024657,2]
[327839026,1716538247016,-500.0,0.00024657,2]
[327839027,1716538247026,-1224.48,0.00024657,2]
[327839028,1716538247035,-512.91,0.00024657,2]
[327839029,1716538247045,-501.9214089,0.00024657,2]
[327839030,1716538247056,-500.0,0.00024657,2]
[327839031,1716538247069,-500.0,0.00024657,2]
[327839032,1716538247080,-502.43539065,0.00024657,2]
[327839033,1716538247089,-1857.16,0.00024657,2]
[327839034,1716538247098,-500.0,0.00024657,2]
[327839035,1716538247108,-677.84,0.00024657,2]
[327839036,1716538247117,-504.16934547,0.00024657,2]
[327839037,1716538247127,-504.95733966,0.00024657,2]
[327839038,1716538247136,-500.0,0.00024657,2]
[327839039,1716538247149,-503.16399862,0.00024657,2]
[327839040,1716538247159,-500.0,0.00024657,2]
[327839041,1716538247169,-500.0,0.00024657,2]
[327839042,1716538247178,-2238.84,0.00024657,2]
[327839043,1716538247187,-503.03197053,0.00024657,2]
[327839044,1716538247196,-500.0,0.00024657,2]
[327839045,1716538247206,-502.38713778,0.00024657,2]
[327839046,1716538247216,-502.29515641,0.00024657,2]
[327839047,1716538247225,-500.0,0.00024657,2]
[327839048,1716538247235,-504.51306152,0.00024657,2]
[327839049,1716538247244,-500.0,0.00024657,2]
[327839050,1716538247254,-158.84879189,0.00024657,2]
[327839051,1716538247263,-525.44,0.00024657,2]
[327839052,1716538247272,-500.0,0.00024657,2]
[327839053,1716538247282,-500.0,0.00024657,2]
[327839054,1716538247291,-500.0,0.00024657,2]
[327839055,1716538247301,-500.0,0.00024657,2]
[327839056,1716538247311,-1011.31,0.00024657,2]
[327839057,1716538247320,-2930.21,0.00024657,2]
[327839058,1716538247330,-501.25381332,0.00024657,2]
[327839059,1716538247339,-500.0,0.00024657,2]
[327839060,1716538247348,-500.0,0.00024657,2]
[327839061,1716538247357,-500.0,0.00024657,2]
[327839062,1716538247368,-1108.5,0.00024657,2]
[327839063,1716538247376,-500.0,0.00024657,2]
[327839064,1716538247386,-500.0,0.00024657,2]
[327839065,1716538247395,-504.15303573,0.00024657,2]
[327839066,1716538247405,-500.0,0.00024657,2]
[327839067,1716538247414,-502.21466262,0.00024657,2]
[327839068,1716538247423,-500.0,0.00024657,2]
[327839069,1716538247433,-501.9871717,0.00024657,2]
[327839070,1716538247442,-500.0,0.00024657,2]
[327839071,1716538247451,-500.0,0.00024657,2]
[327839072,1716538247461,-799.66,0.00024657,2]
[327839073,1716538247471,-752.43,0.00024657,2]
[327839074,1716538247480,-500.0,0.00024657,2]
[327839075,1716538247490,-1389.75,0.00024657,2]
[327839076,1716538247500,-500.0,0.00024657,2]
[327839077,1716538247510,-500.0,0.00024657,2]
[327839078,1716538247519,-585.3,0.00024657,2]
[327839079,1716538247529,-500.0,0.00024657,2]
[327839080,1716538247539,-867.76,0.00024657,2]
[327839081,1716538247548,-500.0,0.00024657,2]
[327839082,1716538247558,-500.0,0.00024657,2]
[327839083,1716538247567,-504.30269471,0.00024657,2]
[327839084,1716538247577,-501.79692677,0.00024657,2]
[327839085,1716538247588,-502.13703219,0.00024657,2]
[327839086,1716538247597,-1248.29,0.00024657,2]
[327839087,1716538247607,-1878.21,0.00024657,2]
[327839088,1716538247616,-500.0,0.00024657,2]
[327839089,1716538247625,-1991.77,0.00024657,2]
[327839090,1716538247634,-500.0,0.00024657,2]
[327839091,1716538247643,-1693.86,0.00024657,2]
[327839092,1716538247653,-502.03766963,0.00024657,2]
[327839093,1716538247663,-329.82,0.00024657,2]
[327839094,1716538247672,-500.0,0.00024657,2]
[327839095,1716538247682,-585.18718838,0.00024657,2]
[327839096,1716538247691,-500.0,0.00024657,2]
[327839097,1716538247700,-2544.7,0.00024657,2]
[327839098,1716538247709,-500.56264307,0.00024657,2]
[327839099,1716538247718,-500.0,0.00024657,2]
[327839100,1716538247727,-537.29,0.00024657,2]
[327839101,1716538247738,-500.0,0.00024657,2]
[327839102,1716538247748,-552.53,0.00024657,2]
[327839103,1716538247757,-803.42,0.00024657,2]
[327839104,1716538247766,-500.0,0.00024657,2]
[327839105,1716538247775,-560.67,0.00024657,2]
[327839106,1716538247785,-500.0,0.00024657,2]
[327839107,1716538247794,-500.0,0.00024657,2]
[327839108,1716538247804,-1000.0,0.00024657,2]
[327839109,1716538247813,-500.0,0.00024657,2]
[327839110,1716538247823,-2483.61,0.00024657,2]
[327839111,1716538247833,-500.0,0.00024657,2]
[327839112,1716538247843,-500.0,0.00024657,2]
[327839113,1716538247852,-532.73716483,0.00024657,2]
[327839114,1716538247861,-500.0,0.00024657,2]
[327839115,1716538247870,-500.0,0.00024657,2]
[327839116,1716538247880,-1094.11,0.00024657,2]
[327839117,1716538247889,-500.0,0.00024657,2]
[327839118,1716538247898,-2180.69,0.00024657,2]
[327839119,1716538247907,-500.0,0.00024657,2]
[327839120,1716538247916,-500.0,0.00024657,2]
[327839121,1716538247926,-530.73,0.00024657,2]
[327839122,1716538247937,-1798.24,0.00024657,2]
[327839123,1716538247947,-500.0,0.00024657,2]
[327839124,1716538247957,-500.0,0.00024657,2]
[327839125,1716538247966,-1803.65,0.00024657,2]
[327839126,1716538247975,-948.56,0.00024657,2]
[327839127,1716538247984,-500.0,0.00024657,2]
[327839128,1716538247994,-500.0,0.00024657,2]
[327839129,1716538248002,-1627.82,0.00024657,2]
[327839130,1716538248011,-500.0,0.00024657,2]
[327839131,1716538248020,-539.24230124,0.00024657,2]
[327839132,1716538248030,-500.0,0.00024657,2]
[327839133,1716538248039,-782.22,0.00024657,2]
[327839134,1716538248048,-500.0,0.00024657,2]
[327839135,1716538248060,-6293.5,0.00024657,2]
[327839136,1716538248072,-500.0,0.00024657,2]
[327839137,1716538248083,-500.0,0.00024657,2]
[327839138,1716538248092,-500.0,0.00024657,2]
[327839139,1716538248103,-7383.31,0.00024657,2]
[327839140,1716538248113,-527.15,0.00024657,2]
[327839141,1716538248122,-500.0,0.00024657,2]
[327839142,1716538248132,-1173.44,0.00024657,2]
[327839143,1716538248144,-500.0,0.00024657,2]
[327839144,1716538248154,-2029.45,0.00024657,2]
[327839145,1716538248164,-500.0,0.00024657,2]
[327839146,1716538248174,-1308.84,0.00024657,2]
[327839147,1716538248183,-2244.88,0.00024657,2]
[327839148,1716538248192,-500.0,0.00024657,2]
[327839149,1716538248202,-500.0,0.00024657,2]
[327839150,1716538248212,-500.0,0.00024657,2]
[327839151,1716538248221,-1450.83,0.00024657,2]
[327839152,1716538248231,-2943.5,0.00024657,2]
[327839153,1716538248240,-749.25,0.00024657,2]
[327839154,1716538248250,-500.0,0.00024657,2]
[327839155,1716538248260,-588.78,0.00024657,2]
[327839156,1716538248269,-500.0,0.00024657,2]
[327839157,1716538248279,-288.95304936,0.00024657,2]
[327839158,1716538248287,-500.0,0.00024657,2]
[327839159,1716538248297,-500.0,0.00024657,2]
[327839160,1716538248306,-500.0,0.00024657,2]
[327839161,1716538248315,-500.0,0.00024657,2]
[327839162,1716538248325,-500.0,0.00024657,2]
[327839163,1716538248334,-16462.69,0.00024657,2]
[327839164,1716538248345,-1383.21,0.00024657,2]
[327839165,1716538248354,-500.0,0.00024657,2]
[327839166,1716538248363,-500.0,0.00024657,2]
[327839167,1716538248373,-612.0,0.00024657,2]
[327839168,1716538248382,-500.0,0.00024657,2]
[327839169,1716538248392,-500.0,0.00024657,2]
[327839170,1716538248402,-2121.32,0.00024657,2]
[327839171,1716538248410,-500.0,0.00024657,2]
[327839172,1716538248420,-741.91,0.00024657,2]
[327839173,1716538248429,-2509.12,0.00024657,2]
[327839174,1716538248438,-2667.83,0.00024657,2]
[327839175,1716538248447,-9849.81,0.00024657,2]
[327839176,1716538248456,-500.0,0.00024657,2]
[327839177,1716538248466,-4976.98,0.00024657,2]
[327839178,1716538248475,-500.0,0.00024657,2]
[327839179,1716538248484,-856.03,0.00024657,2]
[327839180,1716538248493,-3612.34,0.00024657,2]
[327839181,1716538248502,-980.35,0.00024657,2]
[327839182,1716538248511,-500.0,0.00024657,2]
[327839183,1716538248520,-848.71,0.00024657,2]
[327839184,1716538248529,-500.0,0.00024657,2]
[327839185,1716538248539,-500.0,0.00024657,2]
[327839186,1716538248548,-850.15,0.00024657,2]
[327839187,1716538248557,-642.44,0.00024657,2]
[327839188,1716538248567,-2559.56,0.00024657,2]
[327839189,1716538248577,-500.0,0.00024657,2]
[327839190,1716538248587,-530.83,0.00024657,2]
[327839191,1716538248596,-500.0,0.00024657,2]
[327839192,1716538248606,-5122.55,0.00024657,2]
[327839193,1716538248615,-500.0,0.00024657,2]
[327839194,1716538248624,-1545.79,0.00024657,2]
[327839195,1716538248634,-1024.57,0.00024657,2]
[327839196,1716538248643,-500.0,0.00024657,2]
[327839197,1716538248651,-500.0,0.00024657,2]
[327839198,1716538248661,-17702.1,0.00024657,2]
[327839199,1716538248670,-1502.74,0.00024657,2]
[327839200,1716538248680,-500.0,0.00024657,2]
[327839201,1716538248689,-578.86,0.00024657,2]
[327839202,1716538248699,-897.54,0.00024657,2]
[327839203,1716538248708,-500.0,0.00024657,2]
[327839204,1716538248717,-817.64,0.00024657,2]
[327839205,1716538248727,-2188.51,0.00024657,2]
[327839206,1716538248736,-500.0,0.00024657,2]
[327839207,1716538248745,-500.0,0.00024657,2]
[327839208,1716538248755,-500.0,0.00024657,2]
[327839209,1716538248764,-500.0,0.00024657,2]
[327839210,1716538248774,-1163.06,0.00024657,2]
[327839211,1716538248783,-915.46,0.00024657,2]
[327839212,1716538248792,-641.75,0.00024657,2]
[327839213,1716538248801,-496.0,0.00024691,2]
[327839214,1716538248811,-150.0,0.00024691,2]
[327839215,1716538248820,-325.70684361,0.0002475,2]
[327839216,1716538248830,-500.0,0.00024929,4]
[327839217,1716538248839,-500.0,0.00024929,4]
[327839218,1716538248848,-500.0,0.0002493,4]
[327839219,1716538248857,-500.0,0.0002493,4]
[327839220,1716538248867,-500.0,0.0002493,4]
[327839221,1716538248877,-500.0,0.0002493,4]
[327839222,1716538248886,-500.0,0.0002493,4]
[327839223,1716538248895,-500.0,0.0002493,4]
[327839224,1716538248904,-500.0,0.0002493,4]
[327839225,1716538248914,-500.0,0.00024931,3]
[327839226,1716538248923,-500.0,0.00024931,3]
[327839227,1716538248933,-500.0,0.00024931,3]
[327839228,1716538248942,-889.46,0.00024931,3]
[327839229,1716538248951,-500.0,0.00024931,3]
[327839230,1716538248960,-500.0,0.00024931,3]
[327839231,1716538248970,-500.0,0.00024931,3]
[327839232,1716538248979,-500.0,0.00024931,3]
[327839233,1716538248988,-500.0,0.00024931,3]
[327839234,1716538248998,-500.0,0.00024931,3]
[327839235,1716538249007,-513.21097993,0.00024931,3]
[327839236,1716538249016,-500.0,0.00024931,3]
[327839237,1716538249026,-500.0,0.00024931,2]
[327839238,1716538249035,-500.0,0.00024931,3]
[327839239,1716538249044,-500.0,0.00024931,3]
[327839240,1716538249054,-500.0,0.00024931,3]
[327839241,1716538249067,-608.54,0.00024931,3]
[327839242,1716538249077,-500.0,0.00024931,3]
[327839243,1716538249087,-699.22,0.00024931,3]
[327839244,1716538249097,-510.48,0.00024931,3]
[327839245,1716538249108,-500.0,0.00024931,3]
[327839246,1716538249117,-732.22,0.00024931,3]
[327839247,1716538249127,-500.0,0.00024931,3]
[327839248,1716538249140,-500.0,0.00024931,3]
[327839249,1716538249151,-500.0,0.00024931,3]
[327839250,1716538249162,-622.4,0.00024931,3]
[327839251,1716538249172,-1787.19,0.00024931,3]
[327839252,1716538249181,-500.0,0.00024931,3]
[327839253,1716538249191,-957.48,0.00024931,3]
[327839254,1716538249201,-697.68,0.00024931,3]
[327839255,1716538249212,-500.0,0.00024931,3]
[327839256,1716538249222,-2601.77,0.00024931,3]
[327839257,1716538249232,-500.0,0.00024931,3]
[327839258,1716538249242,-1137.02,0.00024931,3]
[327839259,1716538249251,-500.0,0.00024931,3]
[327839260,1716538249260,-1224.48,0.00024931,3]
[327839261,1716538249269,-512.91,0.00024931,3]
[327839262,1716538249278,-500.0,0.00024931,3]
[327839263,1716538249287,-1857.16,0.00024931,3]
[327839264,1716538249297,-500.0,0.00024931,3]
[327839265,1716538249306,-677.84,0.00024931,3]
[327839266,1716538249315,-500.0,0.00024931,3]
[327839267,1716538249324,-500.0,0.00024931,3]
[327839268,1716538249334,-2238.84,0.00024931,3]
[327839269,1716538249343,-500.0,0.00024931,3]
[327839270,1716538249352,-500.0,0.00024931,3]
[327839271,1716538249362,-525.44,0.00024931,3]
[327839272,1716538249371,-500.0,0.00024931,3]
[327839273,1716538249381,-500.0,0.00024931,3]
[327839274,1716538249390,-500.0,0.00024931,3]
[327839275,1716538249512,-1011.31,0.00024931,3]
[327839276,1716538249522,-1483.42042806,0.00024931,3]
[327839277,1716538249540,-1446.78957194,0.00024931,3]
[327839278,1716538249549,-390.71042806,0.00024931,3]
[327839279,1716538263755,3580.69335356,0.00020913,2]
[327839280,1716538285764,27393.74862115,0.00020913,2]
[327839281,1716538285783,8239.72269081,0.00020913,2]
[327839282,1716538300388,946.38470941,0.00020913,2]
[327839283,1716538922526,323.74766127,9.999e-05,2]
[327839285,1716539154166,-200.0,0.0002,2]
[327839286,1716539154186,-162.43732531,0.00021,2]
[327839288,1716539243105,-37.56267469,0.00021,2]
[327839289,1716539243125,-200.0,0.00022,2]
[327839290,1716539243144,-200.0,0.00023,2]
[327839291,1716539243169,-385.93765655,0.00023323,2]
[327839292,1716539243194,-823.50033124,0.00023323,2]
[327839399,1716539433844,-1804.83111395,0.00023323,2]
[327839400,1716539433890,-2007.82695075,0.00023323,2]
[327839401,1716539433901,-151.0,0.00024,2]
[327839402,1716539433911,-200.0,0.00024,2]
[327839403,1716539433920,-151.0,0.00024366,5]
[327839404,1716539433929,-151.0,0.00024366,5]
[327839406,1716539433939,-180.425283,0.00024384,2]
[327839408,1716539433948,-348.210763,0.00024384,2]
[327839410,1716539433958,-290.79227556,0.000245,2]
[327839412,1716539433968,-151.0,0.00024517,5]
[327839414,1716539433977,-229.78694382,0.00024556,2]
[327839416,1716539433987,-201.22,0.00024647,3]
[327839418,1716539433998,-603.7,0.00024647,3]
[327839420,1716539434007,-279.63876136,0.00024656,2]
[327839422,1716539434017,-155.0,0.00024656,2]
[327839424,1716539434027,-13389.95408153,0.00024656,2]
[327839426,1716539434036,-477.79168791,0.00024656,2]
[327839428,1716539434051,-500.0,0.00024656,2]
[327839430,1716539434061,-500.0,0.00024656,2]
[327839432,1716539434070,-310.2706767,0.00024656,2]
[327839434,1716539434080,-500.0,0.00024656,2]
[327839436,1716539434089,-500.0,0.00024656,2]
[327839438,1716539434098,-277.32670139,0.00024656,2]
[327839440,1716539434108,-500.0,0.00024656,2]
[327839442,1716539434118,-500.0,0.00024656,2]
[327839444,1716539434128,-500.0,0.00024656,2]
[327839446,1716539434138,-500.0,0.00024656,2]
[327839448,1716539434147,-500.0,0.00024656,2]
[327839450,1716539434157,-500.0,0.00024656,2]
[327839453,1716539434167,-500.0,0.00024656,2]
[327839455,1716539434177,-500.0,0.00024656,2]
[327839457,1716539434188,-500.0,0.00024656,2]
[327839459,1716539434198,-545.67527597,0.00024656,2]
[327839461,1716539434208,-531.20691591,0.00024656,2]
[327839463,1716539434217,-500.0,0.00024656,2]
[327839464,1716539434227,-500.0,0.00024656,2]
[327839465,1716539434236,-500.0,0.00024656,2]
[327839466,1716539434245,-431.77427301,0.00024656,2]
[327839468,1716539434255,-500.0,0.00024656,2]
[327839470,1716539434264,-500.0,0.00024656,2]
[327839473,1716539434277,-3000.0,0.00024656,2]
[327839475,1716539434287,-412.63640947,0.00024656,2]
[327839477,1716539434301,-176.84417548,0.00024656,2]
[327839479,1716539434311,-574.41,0.00024656,4]
[327839480,1716539434320,-574.41,0.00024656,4]
[327839482,1716539434330,-574.41,0.00024656,4]
[327839483,1716539434339,-574.41,0.00024656,4]
[327839484,1716539434349,-574.41,0.00024656,4]
[327839485,1716539434358,-574.41,0.00024656,4]
[327839486,1716539434368,-1590.36780203,0.00024657,11]
[327839520,1716539439057,-775.9616625,0.00024657,11]
[327839521,1716539439069,-2008.35,0.00024657,11]
[327839549,1716539441610,-2800.43482907,0.00024657,11]
[327839551,1716539441621,-815.33,0.00024657,2]
[327839553,1716539441630,-500.0,0.00024657,2]
[327839555,1716539441640,-500.0,0.00024657,2]
[327839557,1716539441649,-503.72079443,0.00024657,2]
[327839559,1716539441659,-500.0,0.00024657,2]
[327839561,1716539441668,-500.0,0.00024657,2]
[327839563,1716539441677,-500.0,0.00024657,2]
[327839565,1716539441687,-500.0,0.00024657,2]
[327839567,1716539441697,-500.0,0.00024657,2]
[327839569,1716539441707,-671.2,0.00024657,2]
[327839571,1716539441717,-500.0,0.00024657,2]
[327839573,1716539441727,-500.0,0.00024657,2]
[327839575,1716539441737,-1196.28,0.00024657,2]
[327839577,1716539441747,-560.91,0.00024657,2]
[327839579,1716539441757,-1623.28,0.00024657,2]
[327839582,1716539441767,-500.0,0.00024657,2]
[327839584,1716539441776,-500.0,0.00024657,2]
[327839586,1716539441786,-500.0,0.00024657,2]
[327839588,1716539441797,-804.97,0.00024657,2]
[327839591,1716539441806,-500.0,0.00024657,2]
[327839594,1716539441816,-500.0,0.00024657,2]
[327839595,1716539441825,-500.0,0.00024657,2]
[327839596,1716539441835,-1331.84,0.00024657,2]
[327839598,1716539441844,-500.0,0.00024657,2]
[327839599,1716539441853,-500.0,0.00024657,2]
[327839601,1716539441863,-500.0,0.00024657,2]
[327839603,1716539441873,-500.0,0.00024657,2]
[327839605,1716539441882,-500.0,0.00024657,2]
[327839607,1716539441892,-500.0,0.00024657,2]
[327839608,1716539441901,-502.2234212,0.00024657,2]
[327839609,1716539441911,-820.37,0.00024657,2]
[327839610,1716539441920,-3461.82,0.00024657,2]
[327839611,1716539441930,-913.98,0.00024657,2]
[327839612,1716539441939,-615.67,0.00024657,2]
[327839613,1716539441950,-500.0,0.00024657,2]
[327839614,1716539441960,-500.0,0.00024657,2]
[327839615,1716539441970,-500.0,0.00024657,2]
[327839616,1716539441981,-639.54,0.00024657,2]
[327839617,1716539441991,-500.0,0.00024657,2]
[327839618,1716539442000,-500.0,0.00024657,2]
[327839619,1716539442010,-500.0,0.00024657,2]
[327839620,1716539442020,-1481.38,0.00024657,2]
[327839621,1716539442030,-554.75,0.00024657,2]
[327839622,1716539442040,-500.0,0.00024657,2]
[327839623,1716539442052,-1042.27,0.00024657,2]
[327839624,1716539442062,-500.0,0.00024657,2]
[327839625,1716539442071,-557.83,0.00024657,2]
[327839626,1716539442081,-500.0,0.00024657,2]
[327839627,1716539442090,-1000.0,0.00024657,2]
[327839628,1716539442100,-500.0,0.00024657,2]
[327839629,1716539442110,-500.0,0.00024657,2]
[327839630,1716539442120,-20.84982765,0.00024657,2]
[327839631,1716539442133,-479.15017235,0.00024657,2]
[327839632,1716539442144,-500.0,0.00024657,2]
[327839633,1716539442153,-500.0,0.00024657,2]
[327839634,1716539442163,-2522.08,0.00024657,2]
[327839635,1716539442174,-500.0,0.00024657,2]
[327839636,1716539442184,-500.0,0.00024657,2]
[327839637,1716539442194,-20.86588014,0.00024657,2]
[327839638,1716539442206,-479.13411986,0.00024657,2]
[327839639,1716539442216,-1122.44,0.00024657,2]
[327839640,1716539442225,-500.0,0.00024657,2]
[327839641,1716539442235,-721.08,0.00024657,2]
[327839642,1716539442245,-570.53,0.00024657,2]
[327839643,1716539442254,-508.71,0.00024657,2]
[327839644,1716539442264,-503.48155187,0.00024657,2]
[327839645,1716539442273,-877.69,0.00024657,2]
[327839646,1716539442283,-500.0,0.00024657,2]
[327839647,1716539442292,-500.0,0.00024657,2]
[327839648,1716539442303,-500.0,0.00024657,2]
[327839649,1716539442313,-500.0,0.00024657,2]
[327839650,1716539442322,-186.89505493,0.00024657,2]
[327839651,1716539442331,-564.25,0.00024657,2]
[327839652,1716539442341,-500.0,0.00024657,2]
[327839653,1716539442351,-927.04,0.00024657,2]
[327839654,1716539442361,-500.0,0.00024657,2]
[327839655,1716539442370,-814.72,0.00024657,2]
[327839656,1716539442380,-500.0,0.00024657,2]
[327839657,1716539442390,-500.0,0.00024657,2]
[327839658,1716539442399,-500.0,0.00024657,2]
[327839659,1716539442409,-500.0,0.00024657,2]
[327839660,1716539442419,-500.0,0.00024657,2]
[327839661,1716539442428,-500.0,0.00024657,2]
[327839662,1716539442439,-500.0,0.00024657,2]
[327839663,1716539442452,-500.0,0.00024657,2]
[327839664,1716539442462,-640.95,0.00024657,2]
[327839665,1716539442472,-316.08,0.00024657,2]
[327839666,1716539442481,-448.68153721,0.00024657,2]
[327839681,1716539443912,-51.31846279,0.00024657,2]
[327839682,1716539443922,-500.0,0.00024657,2]
[327839683,1716539443932,-2261.66,0.00024657,2]
[327839684,1716539443943,-766.34,0.00024657,2]
[327839685,1716539443953,-500.0,0.00024657,2]
[327839686,1716539443963,-500.0,0.00024657,2]
[327839687,1716539443974,-2965.68,0.00024657,2]
[327839688,1716539443984,-500.0,0.00024657,2]
[327839689,1716539443994,-500.0,0.00024657,2]
[327839690,1716539444005,-500.0,0.00024657,2]
[327839691,1716539444015,-12003.69471364,0.00024657,2]
[327839692,1716539444120,-40.27081392,0.00024657,2]
[327839779,1716540356711,358.91992782,9.999e-05,2]
[327839780,1716540423897,239.27995188,9.999e-05,2]
[327839781,1716540427153,-151.0,0.00024361,5]
[327839782,1716540427182,-151.0,0.00024361,5]
[327839783,1716540427210,-180.425283,0.00024384,2]
[327839784,1716540427238,-330.800224,0.00024384,2]
[327839785,1716540427264,-153.0,0.000244,2]
[327839786,1716540427290,-153.0,0.000244,2]
[327839787,1716540427314,-153.0,0.000244,2]